bitfinex/quotes_ETHUSD_20250414
["timestamp","ask_amount","ask_price","bid_price","bid_amount"]
[1744617119013,0.13777427,1631.8,1631.5,17.03981]
[1744617119214,0.13850406,1631.7,1631.5,12.13639]
[1744617119507,4.89004427,1631.9,1631.5,14.46402633]
[1744617119707,4.89004427,1631.9,1631.5,8.02802633]
[1744617119947,4.89004427,1631.9,1631.5,12.99261035]
[1744617120317,5.66896,1632.0,1631.6,4.90303]
[1744617120516,9.80484,1631.9,1631.5,8.02802633]
[1744617120721,4.90258,1631.8,1631.5,2.32764633]
[1744617120928,4.90258,1631.8,1631.4,16.24333]
[1744617121141,4.90258,1631.8,1631.4,11.3396]
[1744617121747,9.80535,1631.8,1631.4,11.3396]
[1744617121925,5.72381,1631.7,1631.3,5.66154]
[1744617122114,5.72381,1631.7,1631.2,11.14065332]
[1744617122115,4.90327,1631.6,1631.2,4.90426]
[1744617122313,4.90357,1631.5,1631.2,5.829506]
[1744617122625,9.80722,1631.5,1631.2,5.829506]
[1744617122812,0.8183,1631.4,1631.2,5.829506]
[1744617123015,0.8183,1631.4,1631.1,4.90449]
[1744617123239,5.7222,1631.4,1631.0,13.8539102]
[1744617123432,9.80846,1631.3,1631.0,2.5069602]
[1744617123758,0.8183,1631.4,1631.0,7.4118702]
[1744617123759,5.72209,1631.4,1631.0,7.4118702]
[1744617123917,5.72209,1631.4,1631.0,8.64971403]
[1744617124121,5.66679,1631.6,1631.2,4.90423]
[1744617124455,13.56833,1631.9,1631.3,0.7703]
[1744617124617,8.66602,1631.9,1631.5,4.90344]
[1744617125028,5.66602,1631.9,1631.5,4.90344]
[1744617125229,5.66602,1631.9,1631.5,5.94533152]
[1744617125533,10.56848,1631.9,1631.5,5.884046]
[1744617126265,4.90259,1631.8,1631.5,5.884046]
[1744617126472,4.90259,1631.8,1631.5,0.980716]
[1744617126675,4.90259,1631.8,1631.5,5.884176]
[1744617127173,5.66602,1631.9,1631.6,0.5884176]
[1744617127538,4.90286,1631.7,1631.3,5.67421]
[1744617127745,4.90268,1631.8,1631.4,4.90376]
[1744617127946,0.7636,1631.9,1631.6,4.90304]
[1744617128165,0.7636,1631.9,1631.7,4.90285]
[1744617128370,4.9012,1632.3,1631.8,4.96355717]
[1744617128574,0.05,1632.4,1632.1,4.90152]
[1744617128928,0.05,1632.4,1632.0,4.90186]
[1744617129135,4.95093,1632.4,1632.0,4.90186]
[1744617129334,4.95093,1632.4,1632.0,9.80367]
[1744617129535,4.95093,1632.4,1632.0,4.90181]
[1744617129832,4.95093,1632.4,1632.0,6.65397157]
[1744617130776,9.85188,1632.4,1632.0,6.65397157]
[1744617131081,4.90113,1632.3,1632.0,1.75216157]
[1744617132193,4.95077,1632.4,1632.0,1.75216157]
[1744617132407,4.95077,1632.4,1632.0,6.65395157]
[1744617133492,9.85172,1632.4,1632.0,6.65395157]
[1744617133694,4.90123,1632.3,1631.9,7.71755572]
[1744617133989,5.68389,1632.2,1631.9,6.442]
[1744617134175,4.90109,1632.3,1631.9,11.3442]
[1744617134487,10.63411,1632.4,1632.0,5.66404]
[1744617134906,4.90146,1632.2,1631.9,6.442]
[1744617136279,0.8324,1632.4,1631.8,0.7642]
[1744617136280,4.90181,1632.1,1631.8,0.7642]
[1744617136449,4.902,1632.0,1631.7,4.90283]
[1744617136651,5.66671,1632.1,1631.8,0.490283]
[1744617137090,10.56855,1632.1,1631.8,0.490283]
[1744617137272,4.90211,1632.0,1631.6,5.66799]
[1744617137472,4.90211,1632.0,1631.7,4.9028]
[1744617138263,5.66657,1632.1,1631.7,4.9028]
[1744617138660,0.7649,1632.1,1631.7,4.90273]
[1744617138873,4.90137,1632.2,1631.8,5.392663]
[1744617139686,5.70867,1632.1,1631.8,0.490273]
[1744617140070,5.70867,1632.1,1631.8,5.392783]
[1744617140887,0.8069,1632.1,1631.8,5.392783]
[1744617141468,9.80292,1632.2,1631.8,10.35648753]
[1744617141469,4.90139,1632.2,1631.8,10.35648753]
[1744617141664,4.90139,1632.2,1631.8,5.45397753]
[1744617141974,9.80296,1632.2,1631.8,5.45397753]
[1744617142184,5.66464,1632.3,1631.9,5.44759775]
[1744617142358,0.8245,1633.3,1632.9,0.7934]
[1744617142558,0.6,1633.4,1633.3,4.89805]
[1744617142757,0.6,1633.4,1633.2,8.028807]
[1744617143059,0.6,1633.4,1633.3,4.95927387]
[1744617143284,0.6,1633.4,1633.3,6.96625809]
[1744617143484,0.6,1633.4,1633.3,0.7694]
[1744617143711,0.6,1633.4,1633.1,4.89862]
[1744617144091,0.6,1633.4,1633.3,8.028577]
[1744617144421,0.6,1633.4,1633.3,3.19174981]
[1744617144614,0.6,1633.4,1633.3,4.95926855]
[1744617145384,0.6,1633.4,1633.3,0.06121855]
[1744617145687,0.6,1633.4,1633.1,4.89865]
[1744617145884,0.6,1633.4,1633.2,0.06122283]
[1744617146126,0.6,1633.4,1633.2,4.95955283]
[1744617146719,0.6,1633.4,1633.2,0.06122283]
[1744617147120,0.6,1633.4,1633.2,0.55719211]
[1744617147321,0.6,1633.4,1633.2,0.49596928]
[1744617147491,0.6,1633.4,1633.2,4.89818]
[1744617147699,0.6,1633.4,1633.0,0.7824]
[1744617147929,5.49778,1633.4,1632.9,4.89913]
[1744617148139,0.6,1633.4,1633.0,4.8987]
[1744617148431,4.89882,1633.1,1632.8,0.06122914]
[1744617148586,4.89829,1633.3,1632.9,4.89913]
[1744617148786,9.7966,1633.3,1632.9,4.89913]
[1744617148999,4.89829,1633.3,1632.9,4.96035655]
[1744617149415,4.89838,1633.2,1632.7,4.89956]
[1744617149731,4.89868,1633.1,1632.6,18.34288688]
[1744617149960,4.89897,1633.0,1632.6,20.01256]
[1744617150230,4.89897,1633.0,1632.6,13.57456]
[1744617150387,4.89868,1633.1,1632.7,4.96104745]
[1744617150587,4.89955,1632.8,1632.4,2.36723968]
[1744617150794,5.67915,1632.8,1632.4,0.7516]
[1744617151139,9.79818,1633.0,1632.6,4.90014]
[1744617151288,0.7796,1633.1,1632.5,4.90045]
[1744617151488,5.67827,1633.1,1632.6,5.390135]
[1744617151689,4.89911,1633.0,1632.6,5.390135]
[1744617152151,9.79828,1633.0,1632.6,5.390135]
[1744617152463,5.67827,1633.1,1632.7,0.06124075]
[1744617152600,4.89841,1633.2,1632.8,4.89948]
[1744617152798,4.89841,1633.2,1632.8,5.88544537]
[1744617153004,5.73021,1633.3,1632.9,4.89905]
[1744617153230,5.73021,1633.3,1632.9,9.79812]
[1744617153404,5.73021,1633.3,1633.0,4.89893]
[1744617154030,0.8321,1633.3,1633.0,4.89893]
[1744617154344,0.8321,1633.3,1633.0,5.878728]
[1744617155053,4.89847,1633.2,1632.8,6.66925537]
[1744617157048,4.89847,1633.2,1632.8,11.56865537]
[1744617157445,4.89847,1633.2,1632.6,0.45290297]
[1744617157446,4.89899,1633.0,1632.6,0.45290297]
[1744617157746,4.89925,1632.9,1632.5,12.38938]
[1744617158048,4.89925,1632.9,1632.5,12.38935]
[1744617158349,4.89925,1632.9,1632.4,4.90075]
[1744617158350,4.89979,1632.8,1632.4,4.90075]
[1744617158501,9.79958,1632.8,1632.4,5.88093]
[1744617159020,4.89979,1632.8,1632.4,5.88082]
[1744617160738,5.65198,1632.9,1632.4,5.94205049]
[1744617160942,5.7177,1633.1,1632.7,4.89975]
[1744617161143,10.61656,1633.1,1632.7,4.89974]
[1744617161509,4.89906,1633.0,1632.6,4.90011]
[1744617161711,4.89906,1633.0,1632.6,9.80014]
[1744617161933,4.89906,1633.0,1632.6,4.90003]
[1744617162541,4.89906,1633.0,1632.6,9.80003]
[1744617162744,4.89906,1633.0,1632.6,4.9]
[1744617163046,9.79824,1633.0,1632.6,5.961822]
[1744617163244,4.89954,1632.9,1632.5,4.90042]
[1744617163450,9.79898,1632.9,1632.5,4.90042]
[1744617163650,4.89963,1632.8,1632.5,4.90042]
[1744617166054,4.89963,1632.8,1632.4,12.58493]
[1744617166347,5.72515,1632.7,1632.4,7.68418]
[1744617166706,4.90031,1632.6,1632.2,4.90131]
[1744617167353,5.72509,1632.7,1632.3,4.90102]
[1744617167714,10.62514,1632.7,1632.3,4.90102]
[1744617168131,5.72509,1632.7,1632.3,9.80196]
[1744617168511,5.72509,1632.7,1632.3,4.90094]
[1744617168711,5.72509,1632.7,1632.3,5.92617059]
[1744617168942,5.72509,1632.7,1632.3,10.88836622]
[1744617170353,5.72509,1632.7,1632.3,5.98742622]
[1744617170855,10.62512,1632.7,1632.3,5.98742622]
[1744617171614,5.72509,1632.7,1632.3,5.98742622]
[1744617172318,5.72509,1632.7,1632.4,0.59874262]
[1744617172519,5.72509,1632.7,1632.3,10.88833622]
[1744617174151,5.72509,1632.7,1632.3,5.98739622]
[1744617174753,10.62515,1632.7,1632.3,5.98739622]
[1744617175271,10.62515,1632.7,1632.3,9.11579853]
[1744617175673,10.62511,1632.7,1632.3,9.11579853]
[1744617177476,10.62511,1632.7,1632.4,0.19137019]
[1744617177979,4.90016,1632.6,1632.3,9.11579853]
[1744617178347,4.90016,1632.6,1632.4,0.19137088]
[1744617179983,4.90016,1632.6,1632.3,9.0545429]
[1744617180550,4.90075,1632.4,1632.1,10.60020231]
[1744617180781,4.90075,1632.4,1632.1,7.4718]
[1744617180782,9.80178,1632.4,1632.1,7.4718]
[1744617181183,4.90105,1632.3,1632.2,0.19139282]
[1744617181480,4.89986,1632.7,1632.3,4.9009]
[1744617181681,9.7994,1632.8,1632.4,6.23755129]
[1744617181987,4.89965,1632.8,1632.4,11.07695]
[1744617182286,9.79939,1632.8,1632.4,6.1763]
[1744617182456,9.79939,1632.8,1632.5,0.61763]
[1744617182655,9.79938,1632.8,1632.5,0.61763]
[1744617182861,4.89965,1632.8,1632.5,0.61763]
[1744617183451,9.29840231,1633.2,1632.5,0.61763]
[1744617183452,5.66711,1633.3,1632.7,3.12840231]
[1744617183650,0.05,1633.4,1632.6,0.25259393]
[1744617183651,0.05,1633.4,1633.1,8.02679231]
[1744617183882,0.05,1633.4,1633.2,4.95956154]
[1744617184601,4.94777,1633.4,1633.1,5.21368469]
[1744617184752,4.94777,1633.4,1633.1,4.75818154]
[1744617186295,0.05,1633.4,1633.1,9.65681154]
[1744617187088,4.94777,1633.4,1633.1,4.75818154]
[1744617187289,4.8985,1633.2,1632.9,0.7558]
[1744617187465,4.8985,1633.2,1632.9,0.81703274]
[1744617187674,4.8985,1633.2,1632.9,0.7558]
[1744617187871,4.8985,1633.2,1632.9,0.81703274]
[1744617188200,4.8985,1633.2,1632.9,0.7558]
[1744617188403,4.8985,1633.2,1632.9,0.81703274]
[1744617189200,4.8985,1633.2,1632.9,5.71626274]
[1744617189405,4.8985,1633.2,1632.9,7.13657586]
[1744617189705,0.05,1633.4,1633.0,3.12840231]
[1744617189869,4.89811,1633.3,1633.0,8.02733231]
[1744617190279,9.84595,1633.4,1633.0,8.02733231]
[1744617190480,4.89809,1633.3,1633.0,4.63865885]
[1744617190781,4.89809,1633.3,1633.0,1.51025654]
[1744617191101,9.84583,1633.4,1633.0,4.89889]
[1744617191409,4.94788,1633.4,1633.0,9.79774]
[1744617191594,4.89806,1633.3,1633.0,4.89885]
[1744617191786,4.94788,1633.4,1633.0,9.79764]
[1744617191982,4.94788,1633.4,1633.1,5.878374]
[1744617192189,9.84589,1633.4,1633.1,0.979764]
[1744617192391,4.94788,1633.4,1633.0,9.79758]
[1744617192710,0.05,1633.4,1633.2,4.89823]
[1744617193288,0.05,1633.4,1633.1,8.81807231]
[1744617193912,4.94787,1633.4,1633.1,3.91960231]
[1744617194416,4.94787,1633.4,1633.1,0.7912]
[1744617194574,0.05,1633.4,1633.1,6.25875]
[1744617195714,0.05,1633.4,1633.2,12.98618086]
[1744617195912,0.05,1633.4,1633.3,4.89805]
[1744617196124,0.05,1633.4,1633.3,5.72415]
[1744617197385,0.05,1633.4,1633.3,5.78535945]
[1744617197638,0.05,1633.4,1633.3,7.16655863]
[1744617197824,0.05,1633.4,1633.1,7.9468]
[1744617198119,0.05,1633.4,1633.2,0.0612193]
[1744617198280,4.94779,1633.4,1633.2,0.0612193]
[1744617198484,4.94779,1633.4,1633.1,7.9468]
[1744617199225,4.94779,1633.4,1633.1,8.00802415]
[1744617199422,9.84574,1633.4,1633.1,8.00802415]
[1744617199594,4.94779,1633.4,1633.1,6.615]
[1744617199924,4.89819,1633.3,1633.1,6.615]
[1744617200158,4.94779,1633.4,1633.1,6.67622542]
[1744617200753,4.94779,1633.4,1633.1,0.06122542]
[1744617201053,9.84578,1633.4,1633.0,4.89892]
[1744617201253,9.84578,1633.4,1633.0,6.26876623]
[1744617203149,5.65858,1633.3,1633.0,6.26876623]
[1744617204189,4.89808,1633.3,1633.0,6.26876623]
[1744617204570,4.89862,1633.2,1633.0,1.36984623]
[1744617204755,4.89862,1633.2,1632.9,3.90030231]
[1744617204956,4.89862,1633.2,1632.9,0.7719]
[1744617205158,4.89875,1633.1,1632.8,0.45908617]
[1744617205343,4.89875,1633.1,1632.8,4.89953]
[1744617205545,4.89875,1633.1,1632.9,0.489953]
[1744617205745,9.79761,1633.1,1632.9,0.489953]
[1744617206057,4.89903,1633.0,1632.6,4.90015]
[1744617206256,4.89903,1633.0,1632.3,0.7741]
[1744617206257,4.90029,1632.6,1632.3,0.7741]
[1744617206470,9.79872,1632.9,1632.5,4.90031]
[1744617206651,4.89974,1632.8,1632.4,4.90074]
[1744617207077,4.89974,1632.8,1632.4,9.80134]
[1744617207273,4.89974,1632.8,1632.5,0.980134]
[1744617207669,9.79948,1632.8,1632.5,0.980134]
[1744617207987,9.79948,1632.8,1632.4,4.9006]
[1744617208187,4.89988,1632.7,1632.4,4.9006]
[1744617208389,4.89974,1632.8,1632.4,4.9006]
[1744617208685,9.7995,1632.8,1632.4,4.9006]
[1744617209675,4.89986,1632.7,1632.4,4.9006]
[1744617209981,4.89986,1632.7,1632.5,0.49006]
[1744617210181,4.89974,1632.8,1632.5,0.49006]
[1744617210484,4.89996,1632.7,1632.5,0.49006]
[1744617210699,9.79959,1632.8,1632.4,4.90062]
[1744617210988,4.89996,1632.7,1632.3,8.80338231]
[1744617211191,4.89996,1632.7,1632.3,13.70429231]
[1744617211350,4.89996,1632.7,1632.3,8.80338231]
[1744617211550,4.89996,1632.7,1632.4,5.09208958]
[1744617211799,4.89996,1632.7,1632.5,0.50920896]
[1744617212792,4.89974,1632.8,1632.5,5.40955896]
[1744617213090,4.89974,1632.8,1632.5,0.50920896]
[1744617213392,9.79951,1632.8,1632.5,0.50920896]
[1744617213866,4.89986,1632.7,1632.5,0.50920896]
[1744617214578,4.89974,1632.8,1632.5,3.63761127]
[1744617214778,4.89974,1632.8,1632.6,0.36376113]
[1744617215292,3.45969148,1633.2,1632.8,4.89937]
[1744617215293,4.89838,1633.2,1632.8,4.89937]
[1744617215452,0.7907,1633.2,1632.9,0.06123875]
[1744617215655,4.89926,1632.9,1632.6,6.08178113]
[1744617215852,4.89926,1632.9,1632.5,0.50920896]
[1744617215853,0.8179,1632.9,1632.5,0.50920896]
[1744617216095,4.90057,1632.5,1632.2,0.769]
[1744617216255,9.80181,1632.4,1632.2,0.769]
[1744617216455,4.90088,1632.4,1632.1,4.90153]
[1744617217190,9.80113,1632.5,1632.1,4.90153]
[1744617217387,9.80113,1632.5,1632.2,0.490153]
[1744617217893,4.90092,1632.4,1632.2,0.490153]
[1744617218196,4.90046,1632.5,1632.1,0.06126336]
[1744617218356,4.90076,1632.4,1632.1,0.06126336]
[1744617218881,4.90076,1632.4,1632.1,4.90165]
[1744617219083,4.90046,1632.5,1632.1,4.96291277]
[1744617219387,4.90046,1632.5,1632.1,6.28132916]
[1744617219569,4.90046,1632.5,1632.1,1.37967916]
[1744617219570,9.80111,1632.5,1632.1,1.37967916]
[1744617219772,9.80111,1632.5,1632.1,1.31841639]
[1744617219971,9.8011,1632.5,1632.1,6.22001639]
[1744617220613,4.90046,1632.5,1632.1,6.22001639]
[1744617220912,0.8179,1632.6,1632.0,2.50537115]
[1744617221109,5.71538,1632.3,1632.0,2.50537115]
[1744617221310,5.71537,1632.3,1632.0,2.50537115]
[1744617221476,4.90137,1632.2,1632.0,2.50537115]
[1744617221974,9.80291,1632.2,1632.0,2.50537115]
[1744617222376,4.90137,1632.2,1632.0,2.50537115]
[1744617222778,4.90166,1632.1,1632.0,2.50537115]
[1744617222974,6.703663,1632.1,1632.0,2.50537115]
[1744617223178,9.703663,1632.1,1632.0,2.50537115]
[1744617223436,4.90249,1631.9,1631.5,4.90345]
[1744617223717,4.90257,1631.8,1631.5,4.96473136]
[1744617224023,9.80491,1631.9,1631.5,4.96462136]
[1744617224182,9.8049,1631.9,1631.5,5.5374235]
[1744617224822,9.80491,1631.9,1631.5,5.53742889]
[1744617225135,4.90244,1631.9,1631.5,10.44071889]
[1744617225323,8.72347,1632.1,1631.7,5.71632]
[1744617225526,8.72347,1632.1,1631.7,11.25194161]
[1744617225685,3.67840231,1632.5,1631.7,11.25194161]
[1744617225686,4.90107,1632.3,1631.9,8.03049231]
[1744617225880,5.7094,1632.5,1632.1,4.90148]
[1744617226111,10.61004,1632.5,1632.2,0.7913]
[1744617226426,5.7094,1632.5,1632.2,0.7913]
[1744617226736,5.7094,1632.5,1632.0,5.69323]
[1744617226737,4.90091,1632.4,1632.0,5.69323]
[1744617227032,4.90109,1632.3,1632.0,0.7913]
[1744617227216,4.90109,1632.3,1631.9,4.90225]
[1744617227384,4.90138,1632.2,1631.8,5.76558247]
[1744617227588,4.90138,1632.2,1631.8,5.76551247]
[1744617227803,4.90109,1632.3,1631.8,1.80962715]
[1744617227999,4.90109,1632.3,1631.9,4.90197]
[1744617228205,9.80234,1632.3,1631.9,4.90197]
[1744617228504,4.90077,1632.4,1632.0,4.90195]
[1744617228691,4.90077,1632.4,1632.1,0.8038]
[1744617228891,9.80172,1632.4,1632.1,0.8038]
[1744617229387,7.070319,1632.5,1632.1,5.70545]
[1744617229593,4.90017,1632.6,1632.2,4.96244609]
[1744617229907,4.90017,1632.6,1632.3,4.901]
[1744617230409,4.90017,1632.6,1632.2,4.96244609]
[1744617230721,4.90017,1632.6,1632.2,9.86363609]
[1744617230904,5.67198,1632.9,1632.4,0.8257]
[1744617231100,4.89928,1632.9,1632.5,4.90022]
[1744617231307,4.899,1633.0,1632.6,4.9]
[1744617231506,52.527,1633.2,1632.8,4.89944]
[1744617231507,4.89836,1633.2,1632.8,4.89944]
[1744617231705,4.89867,1633.1,1632.7,5.73162]
[1744617232036,5.68288,1633.0,1632.6,4.90012]
[1744617232339,5.68288,1633.0,1632.6,4.89999]
[1744617232490,10.58203,1633.0,1632.6,4.89999]
[1744617232696,4.89938,1632.9,1632.5,5.73235]
[1744617233004,5.68288,1633.0,1632.5,2.60915428]
[1744617233205,5.68288,1633.0,1632.6,9.79986]
[1744617233404,5.68288,1633.0,1632.6,4.89988]
[1744617234626,4.89929,1632.9,1632.5,10.63266]
[1744617235026,4.89929,1632.9,1632.6,4.90014]
[1744617235434,5.68288,1633.0,1632.6,4.9]
[1744617235603,5.68288,1633.0,1632.6,9.80002]
[1744617236009,4.8996,1632.8,1632.4,4.90065]
[1744617236205,4.89954,1632.9,1632.5,4.90022]
[1744617236421,4.89954,1632.9,1632.5,9.80054]
[1744617236624,4.89973,1632.8,1632.5,0.7824]
[1744617237846,5.71785,1632.7,1632.3,10.6281204]
[1744617238047,5.71785,1632.7,1632.4,1.06281204]
[1744617238411,5.71785,1632.7,1632.4,5.96355204]
[1744617238707,0.8179,1632.7,1632.3,0.765]
[1744617238914,0.8179,1632.7,1632.2,1.43663834]
[1744617238915,4.90016,1632.6,1632.2,4.90106]
[1744617239433,4.90016,1632.6,1632.3,4.90104]
[1744617239639,4.90016,1632.6,1632.2,9.8023]
[1744617239950,4.90016,1632.6,1632.2,4.90106]
[1744617240159,9.80049,1632.6,1632.2,6.97922173]
[1744617240448,4.90016,1632.6,1632.2,4.90123]
[1744617240610,9.8005,1632.6,1632.2,4.90123]
[1744617240811,4.90016,1632.6,1632.2,4.90122]
[1744617241010,3.0,1632.8,1632.5,4.90034]
[1744617241210,16.78469,1632.9,1632.5,4.90034]
[1744617241410,9.79931,1632.8,1632.4,5.70854]
[1744617241712,4.89956,1632.8,1632.4,5.70854]
[1744617241911,11.88517,1632.9,1632.5,4.90036]
[1744617242244,11.88517,1632.9,1632.6,4.90015]
[1744617242450,5.71517,1632.9,1632.6,4.90015]
[1744617242658,5.71517,1632.9,1632.5,4.90036]
[1744617243354,4.89927,1632.9,1632.5,4.90036]
[1744617243554,9.79872,1632.9,1632.5,4.90036]
[1744617243727,10.8844077,1632.9,1632.5,4.89342808]
[1744617246531,5.9849577,1632.9,1632.5,4.89342808]
[1744617247030,5.9849577,1632.9,1632.5,9.79372808]
[1744617247356,4.89927,1632.9,1632.5,9.79372808]
[1744617247743,4.89927,1632.9,1632.5,4.89342808]
[1744617247942,5.957147,1633.0,1632.6,4.90011]
[1744617248157,15.13559,1633.1,1632.7,4.89972]
[1744617248456,20.03443,1633.1,1632.7,4.89972]
[1744617248833,15.13559,1633.1,1632.7,4.89972]
[1744617249066,15.13559,1633.1,1632.7,9.79946]
[1744617249247,15.13559,1633.1,1632.7,4.89972]
[1744617249569,0.05,1633.4,1633.1,4.89852]
[1744617249778,0.05,1633.4,1633.2,9.79652]
[1744617249945,0.05,1633.4,1633.3,4.89805]
[1744617250263,0.05,1633.4,1633.2,4.89826]
[1744617250475,0.05,1633.4,1633.2,5.877947]
[1744617251773,0.05,1633.4,1633.2,10.83737921]
[1744617251968,0.05,1633.4,1633.3,4.89805]
[1744617253142,0.05,1633.4,1633.2,5.877897]
[1744617253344,0.05,1633.4,1633.2,0.979687]
[1744617253542,0.05,1633.4,1633.1,9.79712]
[1744617253744,0.05,1633.4,1633.2,4.89835]
[1744617253954,0.05,1633.4,1633.3,4.89805]
[1744617255579,0.05,1633.4,1633.3,5.69555]
[1744617257870,0.05,1633.4,1633.3,4.89805]
[1744617258047,0.05,1633.4,1633.1,10.59551]
[1744617258428,0.05,1633.4,1633.1,5.69688]
[1744617258968,0.54476,1633.4,1633.1,5.69688]
[1744617259740,0.05,1633.4,1633.2,4.89819]
[1744617260133,0.05,1633.4,1633.2,9.79638]
[1744617260350,0.05,1633.4,1633.2,9.79639]
[1744617260662,0.05,1633.4,1633.2,4.89819]
[1744617261886,0.05,1633.4,1633.2,9.85762182]
[1744617262561,0.05,1633.4,1633.2,10.923224]
[1744617262883,0.05,1633.4,1633.1,5.69701]
[1744617263079,0.05,1633.4,1633.2,4.8982]
[1744617265405,0.05,1633.4,1633.3,5.67365]
[1744617265604,0.05,1633.4,1633.3,8.86327787]
[1744617266709,0.05,1633.4,1633.3,9.05452265]
[1744617266877,0.05,1633.4,1633.3,10.38856935]
[1744617267796,0.05,1633.4,1633.3,10.25853709]
[1744617269517,0.05,1633.4,1633.3,10.44978205]
[1744617270382,0.05,1633.4,1633.3,14.02398205]
[1744617270582,0.05,1633.4,1633.3,13.96276953]
[1744617270808,0.05,1633.4,1633.3,13.60398822]
[1744617271031,0.05,1633.4,1633.3,10.47558591]
[1744617271331,0.05,1633.4,1633.3,10.53679073]
[1744617272492,0.05,1633.4,1633.3,10.47558591]
[1744617273138,0.4058257,1633.7,1633.6,8.69525]
[1744617273421,0.4058257,1633.7,1633.6,19.810129]
[1744617274126,0.4058257,1633.7,1633.6,20.360129]
[1744617274436,0.8143,1634.4,1634.2,4.89513]
[1744617274825,0.8143,1634.4,1634.3,4.89506]
[1744617275029,0.05,1634.4,1634.3,4.89506]
[1744617275233,0.05,1634.4,1634.3,4.95624119]
[1744617275632,0.05,1634.4,1634.2,4.89513]
[1744617275951,0.05,1634.4,1634.2,9.79033]
[1744617276315,0.05,1634.4,1634.3,4.89506]
[1744617276517,0.05,1634.4,1634.2,4.89513]
[1744617276933,0.8038,1634.3,1634.0,4.89584]
[1744617277134,0.8038,1634.3,1634.1,4.89549]
[1744617277319,0.8038,1634.3,1634.2,4.89536]
[1744617277529,0.8038,1634.3,1634.1,4.89549]
[1744617277728,0.8038,1634.3,1634.1,9.79096]
[1744617277924,0.8038,1634.3,1633.9,4.89615]
[1744617278113,5.69908,1634.3,1633.9,4.89613]
[1744617278316,1.868187,1634.3,1634.0,4.89585]
[1744617279418,4.94478,1634.4,1634.1,4.89554]
[1744617279620,5.71708,1634.3,1634.0,4.89585]
[1744617280555,0.822,1634.3,1634.0,9.79162]
[1744617280724,0.822,1634.3,1634.0,4.8958]
[1744617280924,0.822,1634.3,1634.0,4.89579]
[1744617281223,0.05,1634.4,1634.2,4.89536]
[1744617281627,0.05,1634.4,1634.1,4.89563]
[1744617282262,4.94482,1634.4,1634.1,4.89563]
[1744617283242,5.6672,1634.3,1633.9,4.89621]
[1744617283484,10.56246,1634.3,1633.9,4.89621]
[1744617283637,6.728446,1634.3,1633.9,4.89621]
[1744617284037,11.623686,1634.3,1633.9,4.89621]
[1744617284660,4.89542,1634.2,1633.7,6.436]
[1744617284849,1.833246,1634.3,1633.7,11.33274]
[1744617284850,10.60141,1634.1,1633.7,11.33274]
[1744617285049,10.60141,1634.1,1633.7,4.89674]
[1744617285252,4.89646,1633.9,1633.5,4.89741]
[1744617285458,9.79301,1633.9,1633.5,4.89741]
[1744617285659,5.68776,1633.8,1633.4,16.23036]
[1744617285861,5.68776,1633.8,1633.4,11.33265]
[1744617286066,0.7912,1633.8,1633.5,4.89731]
[1744617286583,0.7912,1633.8,1633.4,17.4775796]
[1744617287989,5.68786,1633.8,1633.4,4.89762]
[1744617288173,0.7638,1633.5,1633.2,4.89807]
[1744617288583,0.7638,1633.5,1633.2,9.79626]
[1744617288754,0.7638,1633.5,1633.1,10.34290231]
[1744617288755,0.7638,1633.5,1633.3,9.79583]
[1744617288961,0.7638,1633.5,1633.3,5.877483]
[1744617289887,0.7638,1633.5,1633.3,10.775363]
[1744617290395,0.7715,1633.7,1633.4,4.89775]
[1744617290772,0.7715,1633.7,1633.4,4.89763]
[1744617290980,0.7715,1633.7,1633.5,4.89744]
[1744617292692,4.89719,1633.6,1633.3,5.877633]
[1744617292894,4.89719,1633.6,1633.2,4.89834]
[1744617293100,0.8248,1633.5,1633.2,4.89834]
[1744617293304,0.8248,1633.5,1633.2,4.95941273]
[1744617293825,0.8248,1633.5,1633.3,4.89802]
[1744617294698,0.8248,1633.5,1633.3,9.79592]
[1744617294995,0.7672,1633.7,1633.4,4.89775]
[1744617295417,5.6641,1633.7,1633.4,4.89775]
[1744617296418,0.7672,1633.7,1633.4,4.89775]
[1744617297521,5.66406,1633.7,1633.4,4.89775]
[1744617297895,0.7672,1633.7,1633.4,4.89775]
[1744617298098,0.7672,1633.7,1633.4,5.97588933]
[1744617298823,5.66409,1633.7,1633.4,5.97588933]
[1744617299524,4.89717,1633.6,1633.2,4.89833]
[1744617299722,0.7751,1633.5,1633.2,4.89833]
[1744617299923,0.7751,1633.5,1633.2,4.89821]
[1744617301016,0.7751,1633.5,1633.2,9.79642]
[1744617301829,5.67271,1633.5,1633.1,16.23211]
[1744617301998,5.67271,1633.5,1633.1,4.89851]
[1744617302195,9.79588,1633.4,1633.0,4.89884]
[1744617302395,0.7709,1633.3,1633.0,4.89884]
[1744617302628,0.7709,1633.3,1633.0,4.89879]
[1744617302930,0.7709,1633.5,1633.3,4.89805]
[1744617303133,14.83804,1633.7,1633.3,9.79598]
[1744617303492,14.83792,1633.7,1633.3,9.79582]
[1744617303829,9.9409,1633.7,1633.4,4.8976]
[1744617303992,0.7709,1633.7,1633.4,9.79522]
[1744617304627,0.7709,1633.7,1633.4,4.8976]
[1744617305023,0.7709,1633.7,1633.5,9.79463]
[1744617305236,0.757,1633.9,1633.6,4.8971]
[1744617305460,6.17,1634.0,1633.8,4.89655]
[1744617305752,5.6527,1634.1,1633.8,4.89655]
[1744617306060,0.757,1634.1,1633.9,4.89621]
[1744617306664,0.757,1634.1,1633.8,4.89655]
[1744617306860,1.322241,1634.1,1633.6,5.69164]
[1744617307013,5.65267,1634.1,1633.7,4.95805779]